Cogmind - Beta 13 @@@ ROGUE MODE // 2024.04.06 @ 11:56:40 Player: emory Result: Destroyed by Y-45 Defender with Beam Rifle Performance ------------- Evolutions (1) 500 Regions Visited (3) 600 Robots Destroyed (39) 195 Value Destroyed (837) 837 Prototype IDs (0) 0 Alien Tech Used (0) 0 Bonus (51) 51 TOTAL SCORE: 2183 Bonus ------- High Alert Combat Kills 51 Cogmind --------- Core Integrity 0/400 Matter 89/300 Energy 100/100 System Corruption 3% Temperature Cool (9) Movement Treading (480) Ox4 Location -9/Storage Parts ------- > --- POWER (1) -------- (None) > --- PROPULSION (4) --- Light Treads > --- UTILITY (2) ------ Huge Storage Unit > --- WEAPON (2) ------- Mini Grenade Launcher > --- INVENTORY (25) --- Light Ion Engine Heavy Ion Engine Faulty Heavy Ion Engine Heavy Ion Engine Heavy Ion Engine Improved Treads Improved Treads Visual Processing Unit Hardened Light Armor Plating Grenade Launcher Mini Grenade Launcher Mini Grenade Launcher Mini Grenade Launcher Mining Claw Peak State ------------ > --- POWER ------------ Light Ion Engine > --- PROPULSION ------- Aluminum Leg Aluminum Leg Aluminum Leg Aluminum Leg > --- UTILITY ---------- Huge Storage Unit Hacking Suite > --- WEAPON ----------- Light Assault Rifle Grenade Launcher > --- INVENTORY -------- Ion Engine Heavy Ion Engine Heavy Ion Engine Heavy Ion Engine Heavy Ion Engine Light Treads Light Treads Visual Processing Unit EM Pulse Gun EM Shotgun Grenade Launcher Mini Grenade Launcher Mini Grenade Launcher Mini Grenade Launcher Mini Grenade Launcher Mining Claw [Rating: 14] Favorites ----------- Power Light Ion Engine Engine Light Ion Engine Propulsion Aluminum Leg Treads Light Treads Leg Aluminum Leg Utility Huge Storage Unit Storage Huge Storage Unit Hackware Hacking Suite Weapon Mini Grenade Launcher Energy Gun EM Pulse Gun Ballistic Gun Light Assault Rifle Launcher Mini Grenade Launcher Build | -11 -10 -9 -9 ------- Run | Yrd Mat Mat Sto Slots Evolved 2 | . . 2 . Power . | . . . . Propulsion 2 | . . 2 . Utility . | . . . . Weapon . | . . . . Parts Attached 22 | 6 3 4 9 Power 3 | 1 . . 2 Engine 3 | 1 . . 2 Core . | . . . . Reactor . | . . . . Propulsion 9 | 2 . 4 3 Treads 5 | 2 . . 3 Leg 4 | . . 4 . Wheel . | . . . . Hover . | . . . . Flight . | . . . . Utility 3 | 1 2 . . Device . | . . . . Storage 2 | 1 1 . . Processor . | . . . . Hackware 1 | . 1 . . Protection . | . . . . Artifact . | . . . . Weapon 7 | 2 1 . 4 Energy Gun 3 | 1 . . 2 Energy Cannon . | . . . . Ballistic Gun 1 | 1 . . . Ballistic Cannon . | . . . . Launcher 3 | . 1 . 2 Special Weapon . | . . . . Impact Weapon . | . . . . Slashing Weapon . | . . . . Piercing Weapon . | . . . . Special Melee Weapon . | . . . . Unidentified Prototypes . | . . . . Parts Lost 14 | . . . 14 Power 3 | . . . 3 Propulsion 6 | . . . 6 Utility 1 | . . . 1 Weapon 4 | . . . 4 Highest Loss Streak 5 | . . . 5 To Critical Strikes . | . . . . Average Slot Usage (%) 75 | . 96 97 63 Engine 9 | . 14 11 7 Treads 10 | . 28 . 3 Leg 14 | . . 40 17 Storage 11 | . 14 11 11 Hackware 8 | . 10 11 6 Energy Gun 1 | . 2 . . Ballistic Gun 6 | . 14 11 2 Launcher 13 | . 11 11 13 Naked Turns . | . . . . Heaviest Build 89 | 11 87 87 89 Greatest Support 63 | 40 40 40 63 Greatest Overweight (x) 26 | . 2 2 26 Average Overweight (x) 2 | . . 2 4 Largest Inventory Capacity 25 | 8 25 25 25 Average Capacity 21 | 6 14 25 25 Most Carried 18 | 5 16 18 16 Average Carried 12 | 2 8 14 15 Final Capacity 25 | 8 25 25 25 Final Carried 16 | 3 16 14 14 Class Distribution -------------------- 100% | Mutant Dominant Class ---------------- Mutant | -10/Materials Mutant | -9/Materials Mutant | -9/Storage Resources | -11 -10 -9 -9 ----------- Run | Yrd Mat Mat Sto Matter Collected 520 | 190 134 . 196 Remotely . | . . . . Salvage Created 671 | . 199 . 472 Parts 63 | . 19 . 44 Haulers Intercepted 2 | . . . 2 Recyclers Shooed 2 | . . . 2 Parts Field Recycled . | . . . . Retrieved Matter . | . . . . Parts Self-Destructed . | . . . . Prevented . | . . . . Kills | -11 -10 -9 -9 ------- Run | Yrd Mat Mat Sto Combat Hostiles Destroyed 26 | . 7 . 19 Guns 3 | . 1 . 2 AOE 23 | . 6 . 17 Classes Destroyed 9 | . 4 . 5 Worker 5 | . . . 5 Hauler 2 | . . . 2 Recycler 2 | . 1 . 1 Mechanic 1 | . . . 1 Operator 2 | . 1 . 1 Watcher 1 | . . . 1 Swarmer 11 | . 3 . 8 Grunt 10 | . 4 . 6 Sentry 5 | . . . 5 Best Kill Streak 10 | . 4 . 10 Combat Bots Only 8 | . 4 . 8 Max Kills in Single Turn 4 | . 2 . 4 Gunslinging . | . . . . Exploded 3 | . 2 . 3 Melee . | . . . . Uniques/NPCs Destroyed . | . . . . Combat | -11 -10 -9 -9 -------- Run | Yrd Mat Mat Sto Hostile Shots Fired 147 | . 29 . 118 Missed 44 | . 11 . 33 Damage Taken 1711 | . 249 . 1462 Core 426 | . 23 . 403 Absorbed by Shields . | . . . . Core Remaining (%) 95 | 100 90 . . Volleys Fired 54 | . 26 . 28 Largest 2 | . 2 . 2 Hottest 75 | . 60 . 75 Shots Fired 82 | . 34 . 48 Gun 42 | . 29 . 13 Cannon . | . . . . Launcher 40 | . 5 . 35 Special . | . . . . Kinetic 32 | . 26 . 6 Thermal . | . . . . Explosive 40 | . 5 . 35 Electromagnetic 10 | . 3 . 7 Robot Hit Streak 9 | . 5 . 9 Robot Miss Streak 3 | . 2 . 3 Penetration Max . | . . . . Secondary Targets . | . . . . Shots Hit Robots 49 | . 20 . 29 Core Hits 71 | . 15 . 56 Critical Kills . | . . . . Critical Parts Destroyed . | . . . . Critical Strikes . | . . . . Melee Attacks . | . . . . Impact . | . . . . Slashing . | . . . . Piercing . | . . . . Sneak Attacks . | . . . . Combat Hostiles . | . . . . Follow-up Attacks . | . . . . Damage Inflicted 2679 | . 581 5 2093 Guns 255 | . 132 . 123 Cannons . | . . . . Explosions 2321 | . 449 . 1872 Melee . | . . . . Ramming 103 | . . 5 98 Kinetic 146 | . 114 . 32 Thermal 37 | . . . 37 Explosive 2284 | . 449 . 1835 Electromagnetic 109 | . 18 . 91 Impact . | . . . . Slashing . | . . . . Piercing . | . . . . Highest Corruption 3 | . 3 . 3 Average Corruption 2 | . 2 . 3 Corruption Purged . | . . . . Corruption Blocked . | . . . . Effects 17 | . 10 . 7 Message Errors 3 | . 3 . . Matter Fused 6 | . 4 . 2 Heat Flow Errors 1 | . . . 1 Data Loss (minor) 4 | . 1 . 3 Misfires 2 | . 1 . 1 Alerts 1 | . 1 . . Overload Shots . | . . . . Overflow Damage 66 | . 11 . 55 Projectiles . | . . . . Explosions 66 | . 11 . 55 Melee . | . . . . Knockbacks . | . . . . Impact . | . . . . Kinetic . | . . . . Secondary . | . . . . Self-Inflicted Damage 302 | . 33 . 269 Shots 11 | . 2 . 9 Rammed 23 | . . . 23 Targets Rammed 26 | . . 1 25 Kicked 3 | . . 1 2 Crushed . | . . . . Highest Temperature 195 | . 60 . 195 Average Temperature 21 | . 17 . 24 Received Heat Transfer 510 | . 78 . 432 Siege Activations . | . . . . Robots Corrupted . | . . . . Combat Hostiles . | . . . . Parts Fried . | . . . . Impact Corruptions . | . . . . Robots Melted . | . . . . Combat Hostiles . | . . . . Parts Melted . | . . . . Heat Transferred 50 | . . . 50 Parts Sabotaged . | . . . . Parts Stolen . | . . . . Parts Stripped . | . . . . Power Chain Reactions 1 | . . . 1 Alert | -11 -10 -9 -9 ------- Run | Yrd Mat Mat Sto Peak Influence 584 | . 284 50 584 Initial 35 | . . 35 20 Average 262 | . 171 39 357 Maximum Alert Level 2 | . 1 . 2 Low Security (%) 43 | 100 58 100 24 Level 1 22 | . 41 . 18 Level 2 33 | . . . 56 Level 3 . | . . . . Level 4 . | . . . . Level 5 . | . . . . High Security . | . . . . Max Security . | . . . . Squads Dispatched 5 | . 3 . 2 Investigation 3 | . 2 . 1 Extermination . | . . . . Reinforcement 2 | . 1 . 1 Assault . | . . . . Garrison . | . . . . Intercept . | . . . . Searches Triggered . | . . . . Construction Impeded . | . . . . Haulers Reinforced . | . . . . Active Scanning Responses . | . . . . Cargo Convoy Interrupts . | . . . . Stealth | -11 -10 -9 -9 --------- Run | Yrd Mat Mat Sto Distress Signals 1 | . . . 1 Communications Jammed . | . . . . Distress Signals . | . . . . Times Spotted 34 | . 9 2 23 Peak Tracking Total 10 | . 5 2 10 Tactical Retreats . | . . . . Traps | -11 -10 -9 -9 ------- Run | Yrd Mat Mat Sto Traps Triggered 3 | . 3 . . Indirectly . | . . . . Trap Hack Attempts . | . . . . Triggered . | . . . . Disarmed . | . . . . Reprogrammed . | . . . . Reused . | . . . . Traps Extracted . | . . . . Installed . | . . . . Triggered . | . . . . Machines | -11 -10 -9 -9 ---------- Run | Yrd Mat Mat Sto Machines Disabled 8 | . . . 8 Max in Single Turn 2 | . . . 2 Machines Repaired . | . . . . Machines Dismantled . | . . . . Machines Sabotaged . | . . . . Overloaded Fab Kills . | . . . . Hacking | -11 -10 -9 -9 --------- Run | Yrd Mat Mat Sto Machines Accessed 5 | . 4 . 1 Terminals 5 | . 4 . 1 Fabricators . | . . . . Repair Stations . | . . . . Recycling Units . | . . . . Scanalyzers . | . . . . Garrison Access . | . . . . Total Hacks 22 | . 19 . 3 Successful 9 | . 9 . . Failed 12 | . 9 . 3 Catastrophic 3 | . 3 . . Database Lockouts 1 | . 1 . . Manual 15 | . 15 . . Terminals 22 | . 19 . 3 Fabricators . | . . . . Repair Stations . | . . . . Recycling Units . | . . . . Scanalyzers . | . . . . Garrison Access . | . . . . Terminal Hacks 9 | . 9 . . Record 6 | . 6 . . Emergency Access Points 1 | . 1 . . Recall Assault 1 | . 1 . . Zone Layout 1 | . 1 . . Fabricator Hacks . | . . . . Repair Station Hacks . | . . . . Recycling Unit Hacks . | . . . . Scanalyzer . | . . . . Garrison Access Hacks . | . . . . Unauthorized Hacks . | . . . . Terminals . | . . . . Fabricators . | . . . . Repair Stations . | . . . . Recycling Units . | . . . . Scanalyzers . | . . . . Garrison Access . | . . . . Data Cores Recovered . | . . . . Used . | . . . . Hacking Detections 4 | . 3 . 1 Full Trace Events 3 | . 2 . 1 Feedback Events . | . . . . Feedback Blocked . | . . . . Robot Schematics Acquired . | . . . . Robots Built . | . . . . Authchips . | . . . . Time . | . . . . Total Robot Build Rating . | . . . . Part Schematics Acquired . | . . . . Parts Built . | . . . . Authchips . | . . . . Time . | . . . . Total Part Build Rating . | . . . . Parts Repaired . | . . . . Time . | . . . . Parts Recycled . | . . . . Recycled Matter . | . . . . Retrieved Matter . | . . . . Retrieved Components . | . . . . Parts Scanalyzed . | . . . . Part Schematics Acquired . | . . . . Parts Damaged . | . . . . Bothacking | -11 -10 -9 -9 ------------ Run | Yrd Mat Mat Sto Used RIF Installer . | . . . . Robots Hacked . | . . . . Non-combat . | . . . . Combat . | . . . . Robot Hacks Applied . | . . . . Relay Couplers Released . | . . . . Fabnet Peak Effective % . | . . . . Robots Rewired . | . . . . Allies Hacked . | . . . . Hacks Repelled . | . . . . Allies | -11 -10 -9 -9 -------- Run | Yrd Mat Mat Sto Total Allies . | . . . . Largest Group . | . . . . Highest-Rated Group . | . . . . Highest-Rated Ally . | . . . . Total Orders . | . . . . Ally Attacks . | . . . . Total Damage . | . . . . Kills . | . . . . Allies Corrupted . | . . . . Allies Melted . | . . . . Intel | -11 -10 -9 -9 ------- Run | Yrd Mat Mat Sto Robot Analysis Total . | . . . . Derelict Logs Recovered . | . . . . Drone Launches . | . . . . Drone Recoveries . | . . . . Exploration | -11 -10 -9 -9 ------------- Run | Yrd Mat Mat Sto Turns Passed 1723 | 94 464 135 1030 Spaces Moved 508 | 62 193 50 203 Core 35 | 17 . . 18 Treads 268 | 45 193 . 30 Legs 205 | . . 50 155 Wheels . | . . . . Hover . | . . . . Flight . | . . . . Fastest Speed 50 | 50 160 260 240 Average Speed 288 | 129 203 260 425 Slowest Speed 1350 | 160 320 260 1350 Overloaded Moves . | . . . . Propulsion Burnouts . | . . . . Robots Hopped . | . . . . Cave-ins Triggered 1 | . . . 1 Exploration Rate (%) 25 | 4 41 5 52 Regions Visited 3 Branch Regions 1 Pre-discovered Areas . | . . . . Known Exits Taken . | . . . . Unknown Exits Taken 3 | 1 1 1 . Scrap Searched . | . . . . Spaces Dug . | . . . . Terrain Destroyed 215 | . 28 . 187 Melee . | . . . . Projectile . | . . . . AOE 215 | . 28 . 187 Terrain Rammed . | . . . . Walls Destroyed . | . . . . Machines Disabled . | . . . . Actions | -11 -10 -9 -9 --------- Run | Yrd Mat Mat Sto Total 646 | 76 240 56 274 Wait . | . . . . Move 506 | 61 192 50 203 Hop . | . . . . Pick Up 33 | 9 16 . 8 Fast Attach . | . . . . Attach 21 | 6 2 4 9 Detach 4 | . 1 2 1 Swap 1 | . 1 . . Drop 2 | . 2 . . Fire 54 | . 26 . 28 Melee . | . . . . Ram 1 | . . . 1 Kick 2 | . . . 2 Crush 22 | . . . 22 Escape Stasis . | . . . . Rewire . | . . . . Trap . | . . . . Miscellaneous . | . . . . Route ------- -11/Scrapyard -10/Materials (discovered 2 exits: [*Mat x2]) -9/Materials -9/Storage History --------- Turn | Location | Event 4 | -11/Scrapyard | Discovered new exit (range 13) 95 | -11/Scrapyard | Entered Materials 287 | -10/Materials | Discovered new exit (range 16) 313 | -10/Materials | Build established: Mutant 429 | -10/Materials | Central database locked down 455 | -10/Materials | Discovered new exit (range 11) 559 | -10/Materials | Entered another Materials area 559 | -9/Materials | Evolved 2 slots: Propulsion x2 565 | -9/Materials | Discovered new exit (range 14) 694 | -9/Materials | Entered Storage 977 | -9/Storage | Destroyed 8 combat bots 987 | -9/Storage | Lost 5 parts (1p2n2w) 1291 | -9/Storage | Core integrity fell below 50% 1293 | -9/Storage | Crushed by falling debris 1327 | -9/Storage | Lost 4 parts (1p1n1u1w) 1710 | -9/Storage | Core integrity fell below 20% 1724 | -9/Storage | Destroyed by Y-45 Defender with Beam Rifle Last Messages --------------- Slammed into Y-45 Defender. U-05 Engineer lays Concrete. Slammed into Y-45 Defender. U-05 Engineer lays Concrete. Lgt. Ion Engine destroyed. Critical hit (Burn: +37). U-05 Engineer builds a Wall. Slammed into Y-45 Defender. System corrupted: FCS attempts to trigger Mni. Grenade Launcher. System corrupted: Mni. Grenade Launcher misfires. [Achievement: Maybe Next Time I'll Detach My Launcher] Terminal disabled. Slammed into Y-45 Defender. Lgt. Treads destroyed. Slammed into Y-45 Defender. Imp. Treads destroyed. Slammed into Y-45 Defender. Map ----- +----------------------------------------------------+ | ??????????????????????????#+###+#########+###????? | | ??????????????????????????# ^ ???? | | ??????????????????????????# ^ ^ ???????? | | ??????????????????######### / = """ ?????????? | | ??????????????????# ## / = """ ?????????? | | ??????????????##### / = """ #????? | | ????????????? + #????? | | ??????????????##### #????? | | ?????????????????## ##########+###+###+#????? | | ????????#???###### # # #??????????????????????? | | ???????? ### # # ## #??????????????????????? | | ???????? + # ## #??????????????????????? | | ???????? # # ####??????????????????????? | | ??????## # # # #???????????????????????? | | ?????? + + # ###???????????????????????? | | ????? # # # ###?####??????????????????? | | ???????# ########## # #?"""#??????????????????? | | ???????# # # ###?"Y"#??????????????????? | | ???????# # # ####" "###????????????????? | | ???????# # # # #????????????????? | | ???????# # + # #????????????????? | | ???????# + # ]][ #????????????????? | | ???????# # # # ][[ #????????????????? | | ???????# # # ][[ #????????????????? | | ???????# # # #"Y #????????????????? | | ???????# + # @ ]#????????????????? | | ???????# ########## #????????????????? | | ?????###/########### # #????????????????? | | ?????# ! # # # "Y"###????????????????? | | ?????# ########"""#??????????????????? | | ?????# #???????####??????????????????? | | ?????# #?????????????????????????????? | | ?????# #?????????????????????????????? | | ????# #?????????????????????????????? | | ##### #/#############????????????????????????? | | ???????????????????????? | | ???????????????????????? | | ???????????????????????? | | ####### ^###############?????????????????????? | | ##?????### ##??????? #?????????????????????? | | ????????# #???##### # ####??????????????????? | | ?????????# #???# " #??????????????????? | | ???????" # #???# # #??????????????? | | ???????" + ##### + +??????????????? | | ?????????# # # #??????????????????? | | ?????????# %# ! = #* #?????????????? | | ########?# ## = # ### % #?????????????? | | # ### *% #??????????????? | | ## # ##+## ### # #??????????????? | | # # # ##???#??????????????????? | +----------------------------------------------------+ Best States ------------- Heat Dissipation 28 Energy Generation 10 Energy Capacity 250 Matter Stores 256 Matter Capacity 300 Sight Range 16 Terrain Scan Density 10 Evasion (%) 50 Recoil Reduction 3 Offensive Hacking 10 Item Schematics ----------------- None Robot Schematics ------------------ None Fabricated ------------ Nothing Alien Tech Used ----------------- None Achievements -------------- Maybe Next Time I'll Detach My Launcher Unlikely Earthworm Challenges ------------ None Game ------ Seed AerolevSmallBroadsword Manual? 0 Play Time 00:23:05 Cumulative 6.5 hours Start 2024.04.06 @ 11:30:30 End 2024.04.06 @ 11:56:40 Sessions 1 Manual Loads 0 Difficulty Rogue Special Mode None Game No. 14 Rogue 14 Adventurer 0 Explorer 0 Win Type - Total 0 Types 0/0/0/0/0/0/0/0/0 Lore% 4 Gallery% 10 Achievement% 9 Wizard Run 0 Options --------- Layout 1 ASCII 1 Keyboard 0 Movement Vi Keybinds 0 Fullscreen 1 Font 16/SmallcapsGlow Map View 50x35 Zoom Use 0% Tactical HUD 0 Map Filters NONE Filters NONE Steam SD RUN: 3a32085e-c9c5-4a22-a3c1-c415dace9460